bitfinex/quotes_SOLUSD_20220212
["timestamp","ask_amount","ask_price","bid_price","bid_amount"]
[1644690943252,5.074,98.565,98.491,5.44000001]
[1644690943460,5.06718168,98.568,98.491,5.44000001]
[1644690943461,14.63,98.56,98.491,5.44000001]
[1644690943652,5.06718168,98.559,98.491,5.44000001]
[1644690945560,5.06718168,98.559,98.492,100.3]
[1644690945752,14.63,98.56,98.5,15.2275]
[1644690945951,14.63,98.56,98.501,140.37031289]
[1644690946151,14.63,98.56,98.501,40.07031289]
[1644690946552,23.1273,98.582,98.501,40.07031289]
[1644690946753,14.63,98.58,98.502,28.80320766]
[1644690947255,5.06462636,98.579,98.502,129.10320766]
[1644690947853,5.06462636,98.579,98.501,40.07031289]
[1644690947854,5.06462636,98.579,98.511,100.3]
[1644690948152,5.06462636,98.579,98.512,129.10320766]
[1644690948554,5.06462636,98.579,98.513,28.80320766]
[1644690948954,5.06462636,98.579,98.511,34.24320767]
[1644690949454,5.06462636,98.579,98.512,28.80320766]
[1644690952258,5.06462636,98.579,98.512,129.10320766]
[1644690952756,5.06462636,98.579,98.513,28.80320766]
[1644690952957,5.06462636,98.579,98.513,34.24320767]
[1644690953156,5.06462636,98.579,98.513,5.44000001]
[1644690953455,5.06462636,98.579,98.514,28.80320766]
[1644690955161,5.06462636,98.579,98.516,45.43144956]
[1644690955360,5.06462636,98.579,98.521,100.3]
[1644690955560,5.06395786,98.598,98.523,100.3]
[1644690955764,5.06395786,98.615,98.525,100.3]
[1644690956159,5.06395786,98.629,98.525,100.3]
[1644690956360,5.06395786,98.614,98.527,100.3]
[1644690956560,5.06395786,98.629,98.527,100.3]
[1644690956759,5.06395786,98.629,98.55,15.2187]
[1644690956960,5.072,98.628,98.528,28.80320766]
[1644690957171,5.06395786,98.627,98.522,100.3]
[1644690957367,5.06395786,98.627,98.523,5.072]
[1644690957567,23.53106055,98.626,98.522,100.3]
[1644690957769,5.06395786,98.625,98.523,28.79923003]
[1644690957966,14.63,98.61,98.523,28.79923003]
[1644690958166,10.13595786,98.609,98.523,28.79923003]
[1644690958367,5.06395786,98.608,98.523,28.79923003]
[1644690958571,5.072,98.607,98.523,28.79923003]
[1644690958772,5.072,98.607,98.53,15.2219]
[1644690958973,5.06395786,98.606,98.531,34.27802425]
[1644690959374,5.072,98.605,98.531,34.27802425]
[1644690959575,5.06395786,98.608,98.531,34.27802425]
[1644690959576,5.06395786,98.604,98.531,34.27802425]
[1644690960074,5.072,98.603,98.531,34.27802425]
[1644690960379,5.06395786,98.602,98.531,34.27802425]
[1644690960775,5.06395786,98.609,98.531,34.27802425]
[1644690961875,5.06395786,98.609,98.532,5.44000001]
[1644690965488,5.06395786,98.609,98.533,28.79729267]
[1644690965786,5.06395786,98.609,98.534,5.44000001]
[1644690966184,5.06395786,98.609,98.535,28.79729267]
[1644690966786,31.01732263,98.608,98.535,28.79729267]
[1644690967087,21.10047604,98.607,98.534,5.44000001]
[1644690967390,182.93,98.59,98.534,5.44000001]
[1644690967586,14.63,98.58,98.534,5.44000001]
[1644690967786,5.06395786,98.579,98.534,5.44000001]
[1644690967990,5.073,98.578,98.534,5.44000001]
[1644690968391,5.06395786,98.577,98.534,5.44000001]
[1644690968591,5.073,98.576,98.534,5.44000001]
[1644690968887,5.06395786,98.575,98.482,100.3]
[1644690969088,5.074,98.574,98.482,100.3]
[1644690969288,14.63,98.56,98.483,47.87508109]
[1644690969487,5.075,98.559,98.483,76.68197947]
[1644690969688,5.06395786,98.558,98.483,76.68197947]
[1644690969889,5.075,98.557,98.484,28.80689838]
[1644690970091,5.06395786,98.556,98.484,28.80689838]
[1644690970492,5.06395786,98.558,98.484,28.80689838]
[1644690970691,5.075,98.557,98.484,28.80689838]
[1644690971191,5.06395786,98.556,98.484,28.80689838]
[1644690971590,5.075,98.555,98.484,28.80689838]
[1644690971791,5.075,98.559,98.484,28.80689838]
[1644690971992,4.98591743,98.558,98.484,28.80689838]
[1644690972192,5.075,98.557,98.485,5.44000001]
[1644690972392,4.98591743,98.556,98.485,5.44000001]
[1644690972591,5.075,98.555,98.485,5.44000001]
[1644690972792,4.98591743,98.554,98.486,28.80689838]
[1644690972994,14.63,98.54,98.486,28.80689838]
[1644690973192,10.06091743,98.539,98.486,28.80689838]
[1644690973592,5.075,98.539,98.486,28.80689838]
[1644690974692,5.00634617,98.538,98.486,28.80689838]
[1644690974895,5.075,98.537,98.486,28.80689838]
[1644690975094,5.00634617,98.536,98.486,28.80689838]
[1644690975293,5.075,98.537,98.485,5.44000001]
[1644690975294,29.8671,98.54,98.485,5.44000001]
[1644690975496,4.99998625,98.539,98.487,5.44000001]
[1644690975694,15.2386,98.53,98.487,5.44000001]
[1644690975893,14.63,98.52,98.487,5.44000001]
[1644690977296,14.13,98.52,98.487,5.44000001]
[1644690978503,14.13,98.52,98.472,47.85581726]
[1644690978704,14.13,98.52,98.448,5.44000001]
[1644690978903,14.13,98.52,98.449,5.075]
[1644690979304,14.13,98.52,98.45,28.8180773]
[1644690979704,14.13,98.52,98.451,41.3405544]
[1644690979906,14.13,98.52,98.45,28.8180773]
[1644690980104,14.13,98.52,98.448,5.44000001]
[1644690980105,5.075,98.519,98.452,28.8180773]
[1644690980508,5.075,98.519,98.449,28.8180773]
[1644690980709,14.13,98.52,98.449,28.8180773]
[1644690980908,14.13,98.52,98.45,41.74193375]
[1644690981508,14.13,98.52,98.451,34.25807731]
[1644690981709,14.13,98.52,98.452,28.8180773]
[1644690984711,14.13,98.52,98.453,5.44000001]
[1644690984908,5.075,98.519,98.453,5.44000001]
[1644690985109,5.075,98.519,98.454,28.8180773]
[1644690986511,14.13,98.52,98.454,28.8180773]
[1644690986711,5.075,98.519,98.454,28.8180773]
[1644690987513,5.075,98.519,98.455,0.25]
[1644690987713,14.13,98.52,98.455,5.075]
[1644690987916,14.13,98.52,98.456,28.8180773]
[1644690988714,14.13,98.52,98.455,34.25807731]
[1644690989116,14.13,98.52,98.456,28.8180773]
[1644690990119,5.075,98.519,98.456,28.8180773]
[1644690990820,5.075,98.519,98.457,5.44000001]
[1644690991224,5.075,98.519,98.458,28.8180773]
[1644690991421,14.13,98.52,98.458,28.8180773]
[1644690991620,15.2384,98.53,98.458,28.8180773]
[1644690991824,14.63,98.52,98.458,28.8180773]
[1644690992522,14.63,98.52,98.459,0.25]
[1644690993123,14.63,98.52,98.46,28.8180773]
[1644690994124,5.075,98.519,98.461,5.44000001]
[1644690994426,100.3,98.518,98.462,28.8180773]
[1644690994627,5.075,98.517,98.462,28.8180773]
[1644690994824,100.3,98.516,98.462,28.8180773]
[1644690995023,5.075,98.519,98.462,28.8180773]
[1644690995224,29.8702,98.52,98.461,5.44000001]
[1644690996825,5.01020029,98.519,98.461,5.44000001]
[1644690997024,10.08520029,98.519,98.461,5.44000001]
[1644690997246,5.01020029,98.518,98.451,5.44000001]
[1644690997445,5.075,98.517,98.451,5.44000001]
[1644690997745,5.075,98.517,98.452,28.81942674]
[1644690997944,5.075,98.519,98.452,28.81942674]
[1644690998145,5.01015108,98.516,98.452,28.81942674]
[1644690998346,5.01015108,98.518,98.452,28.81942674]
[1644690998550,5.075,98.517,98.452,28.81942674]
[1644690998747,5.01015108,98.516,98.452,28.81942674]
[1644690999147,5.01015108,98.518,98.452,28.81942674]
[1644690999347,5.01015108,98.519,98.452,28.81942674]
[1644691000350,5.01015108,98.519,98.453,5.44000001]
[1644691000748,14.63,98.52,98.453,5.44000001]
[1644691000952,14.63,98.52,98.454,28.81942674]
[1644691001750,14.63,98.52,98.455,0.25]
[1644691001952,5.075,98.538,98.455,0.25]
[1644691002149,14.63,98.54,98.456,33.89442674]
[1644691002649,14.63,98.54,98.457,28.81942674]
[1644691002849,14.63,98.56,98.458,5.075]
[1644691003051,14.63,98.56,98.46,15.2338]
[1644691003250,5.01669504,98.559,98.461,105.375]
[1644691003450,5.01669504,98.559,98.461,134.19442674]
[1644691003850,5.01669504,98.559,98.462,28.81942674]
[1644691004052,5.01669504,98.559,98.48,15.2308]
[1644691004250,5.01669504,98.559,98.481,41.75585454]
[1644691004549,5.01669504,98.559,98.482,28.81942674]
[1644691004749,5.01669504,98.559,98.483,5.075]
[1644691004950,5.01669504,98.559,98.483,28.81942674]
[1644691004951,5.075,98.558,98.483,28.81942674]
[1644691005350,5.01669504,98.557,98.482,28.81942674]
[1644691005550,5.01669504,98.557,98.482,33.89442674]
[1644691005952,5.01669504,98.559,98.482,33.89442674]
[1644691006350,5.01669504,98.559,98.483,28.81942674]
[1644691006551,5.01669504,98.559,98.483,34.25942675]
[1644691007152,5.01669504,98.559,98.484,28.81942674]
[1644691008453,5.075,98.558,98.484,28.81942674]
[1644691008656,5.01669504,98.557,98.485,5.075]
[1644691008853,5.01669504,98.559,98.485,5.075]
[1644691009053,5.01669504,98.559,98.486,28.81942674]
[1644691009653,5.01669504,98.559,98.487,5.44000001]
[1644691010255,5.01669504,98.559,98.488,28.81942674]
[1644691011262,14.63,98.56,98.488,28.81942674]
[1644691012057,2.87081805,98.551,98.488,28.81942674]
[1644691012256,28.0,98.539,98.46,50.14960103]
[1644691012458,7.0,98.52,98.46,50.14960103]
[1644691012658,2.87081805,98.509,98.403,0.024]
[1644691012857,2.87081805,98.504,98.435,0.024]
[1644691013058,2.87081805,98.503,98.394,0.024]
[1644691013259,2.87081805,98.506,98.394,137.62504664]
[1644691013459,2.87081805,98.508,98.394,137.62504664]
[1644691013659,7.87736892,98.509,98.395,0.25]
[1644691013861,5.00655087,98.509,98.42,15.239]
[1644691014061,5.00655087,98.509,98.421,48.49939541]
[1644691014258,105.30655087,98.509,98.422,5.077]
[1644691014458,5.00655087,98.508,98.422,5.077]
[1644691015260,15.2427,98.5,98.422,5.077]
[1644691015461,14.63,98.49,98.421,48.49939541]
[1644691015662,5.078,98.489,98.421,48.49939541]
[1644691016475,14.63,98.49,98.421,48.49939541]
[1644691017769,14.63,98.49,98.422,5.078]
[1644691022878,5.078,98.509,98.423,100.3]
[1644691023077,5.078,98.509,98.423,103.17390296]
[1644691023276,48.8042,98.519,98.424,7.70090296]
[1644691023497,48.8042,98.519,98.424,7.72490296]
[1644691023696,48.8042,98.519,98.425,2.62390296]
[1644691023898,48.8042,98.519,98.426,5.101]
[1644691024099,14.63,98.52,98.427,0.024]
[1644691024297,5.077,98.518,98.428,5.077]
[1644691024496,14.63,98.52,98.428,5.077]
[1644691024497,5.077,98.519,98.428,5.077]
[1644691024697,5.077,98.519,98.429,100.324]
[1644691024897,5.077,98.519,98.43,15.2384]
[1644691025196,5.077,98.519,98.431,100.3]
[1644691025397,5.077,98.536,98.431,102.92390296]
[1644691025598,5.077,98.536,98.433,100.3]
[1644691025797,5.19676125,98.535,98.433,100.3]
[1644691025997,5.075,98.534,98.437,100.3]
[1644691026296,5.19689713,98.533,98.437,100.3]
[1644691026497,5.075,98.532,98.437,100.3]
[1644691026700,5.19689713,98.531,98.437,100.3]
[1644691026897,5.19689713,98.531,98.45,15.2353]
[1644691027199,5.075,98.53,98.451,142.00741557]
[1644691027397,5.19689713,98.535,98.451,142.00741557]
[1644691027598,5.075,98.534,98.451,142.00741557]
[1644691027797,5.075,98.535,98.451,142.00741557]
[1644691027998,5.075,98.536,98.451,142.00741557]
[1644691028198,5.075,98.536,98.461,100.3]
[1644691028397,5.075,98.539,98.461,100.3]
[1644691028598,5.075,98.539,98.46,15.2337]
[1644691029398,5.19744359,98.538,98.46,15.2337]
[1644691029602,5.19744359,98.538,98.461,5.075]
[1644691029999,5.19744359,98.539,98.461,5.075]
[1644691031708,14.63,98.54,98.461,5.075]
[1644691031905,14.63,98.54,98.47,15.232]
[1644691032105,2.87081805,98.554,98.472,41.23472007]
[1644691032305,2.87081805,98.557,98.473,100.3]
[1644691032509,2.87081805,98.557,98.473,105.375]
[1644691032707,5.075,98.556,98.473,105.375]
[1644691033006,5.19559451,98.555,98.473,105.375]
[1644691033306,5.19559451,98.558,98.473,105.375]
[1644691033505,5.075,98.558,98.473,105.375]
[1644691033706,5.19643842,98.557,98.473,105.375]
[1644691033906,5.075,98.556,98.481,100.3]
[1644691034106,5.075,98.556,98.483,100.3]
[1644691034309,5.075,98.56,98.483,100.3]
[1644691034508,5.1964221,98.559,98.483,100.3]
[1644691034706,5.075,98.558,98.481,5.075]
[1644691034909,5.1964221,98.557,98.482,100.3]
[1644691035308,5.075,98.556,98.481,5.075]
[1644691035508,5.1964221,98.555,98.481,5.075]
[1644691035709,5.075,98.554,98.481,5.075]
[1644691035910,5.1964221,98.558,98.481,5.075]
[1644691036112,5.075,98.557,98.482,100.3]
[1644691036309,5.1966201,98.557,98.483,105.375]
[1644691036509,5.075,98.556,98.483,105.375]
[1644691036709,112.5,98.561,98.483,105.375]
[1644691036912,5.19660055,98.56,98.483,105.375]
[1644691038111,5.075,98.559,98.483,105.375]
[1644691038311,5.19660055,98.558,98.483,105.375]
[1644691038518,5.19660055,98.558,98.483,100.3]
[1644691038732,5.075,98.56,98.483,100.3]
[1644691038733,5.19660055,98.559,98.483,100.3]
[1644691040027,5.075,98.558,98.483,100.3]
[1644691040226,5.19660055,98.557,98.483,100.3]
[1644691040427,5.075,98.556,98.483,100.3]
[1644691040828,1.43311931,98.53,98.483,100.3]
[1644691041027,1.43311931,98.524,98.483,100.3]
[1644691041727,1.43311931,98.526,98.483,100.3]
[1644691041935,1.43311931,98.525,98.473,5.075]
[1644691042155,1.43311931,98.511,98.473,5.075]
[1644691042530,1.43311931,98.508,98.473,5.075]
[1644691042729,1.43311931,98.506,98.473,5.075]
[1644691043331,1.43311931,98.505,98.473,5.075]
[1644691043732,1.43311931,98.505,98.472,41.23472007]
[1644691043932,1.43311931,98.504,98.472,41.23472007]
[1644691044333,1.43311931,98.502,98.472,41.23472007]
[1644691044740,1.43311931,98.5,98.472,41.23472007]
[1644691044937,1.43311931,98.501,98.472,41.23472007]
[1644691045336,1.43311931,98.5,98.472,41.23472007]
[1644691045536,1.43311931,98.501,98.472,41.23472007]
[1644691045735,1.43311931,98.505,98.472,41.23472007]
[1644691046134,1.43311931,98.506,98.472,41.23472007]
[1644691046536,1.43311931,98.507,98.472,41.23472007]
[1644691047040,1.43311931,98.504,98.472,41.23472007]
[1644691047338,1.43311931,98.503,98.472,41.23472007]
[1644691047539,1.43311931,98.511,98.472,41.23472007]
[1644691047737,1.43311931,98.515,98.472,41.23472007]
[1644691048237,1.43311931,98.513,98.472,41.23472007]
[1644691048441,1.43311931,98.511,98.472,41.23472007]
[1644691048638,1.43311931,98.51,98.472,41.23472007]
[1644691048840,1.43311931,98.511,98.472,41.23472007]
[1644691049038,1.43311931,98.511,98.473,5.075]
[1644691049439,1.43311931,98.51,98.472,41.23472007]
[1644691049957,1.43311931,98.507,98.472,41.23472007]
[1644691050157,1.43311931,98.506,98.472,41.23472007]
[1644691050359,2.87081805,98.534,98.474,52.0]
[1644691050558,2.87081805,98.539,98.475,5.075]
[1644691050762,2.87081805,98.543,98.475,5.325]
[1644691050960,2.87081805,98.545,98.48,15.2307]
[1644691051161,2.87081805,98.545,98.481,5.075]
[1644691051363,2.87081805,98.546,98.481,5.075]
[1644691052163,8.08141697,98.547,98.481,5.075]
[1644691052361,5.21059892,98.545,98.481,5.075]
[1644691052559,5.075,98.544,98.481,5.075]
[1644691052760,5.21059892,98.543,98.481,5.075]
[1644691053162,5.075,98.542,98.481,5.075]
[1644691053362,5.21059892,98.541,98.481,5.075]
[1644691053563,5.21059892,98.545,98.481,5.075]
[1644691053762,5.075,98.545,98.481,5.075]
[1644691053963,5.21059892,98.544,98.481,5.075]
[1644691054462,5.075,98.543,98.481,5.075]
[1644691054663,5.21059892,98.546,98.48,15.2307]
[1644691054664,5.21059892,98.542,98.48,15.2307]
[1644691054862,5.075,98.542,98.48,15.2307]
[1644691055065,5.21059892,98.541,98.48,15.2307]
[1644691055462,5.21059892,98.546,98.48,15.2307]
[1644691055863,5.21059892,98.547,98.48,15.2307]
[1644691056065,5.21059892,98.545,98.475,0.25]
[1644691056263,5.21059892,98.546,98.475,0.25]
[1644691056462,5.21059892,98.544,98.475,0.25]
[1644691056663,2.87081805,98.545,98.476,2.62390296]
[1644691056864,5.21059892,98.547,98.476,2.62390296]
[1644691057064,5.075,98.546,98.475,0.25]
[1644691057267,5.21059892,98.545,98.475,0.25]
[1644691057465,5.075,98.544,98.475,0.25]
[1644691057866,5.21059892,98.543,98.475,0.25]
[1644691058265,5.075,98.542,98.475,0.25]
[1644691058465,5.21059892,98.541,98.475,0.25]
[1644691058666,5.075,98.54,98.475,0.25]
[1644691058867,5.21059892,98.539,98.475,0.25]
[1644691059066,24.5827,98.548,98.475,0.25]
[1644691059067,5.21059892,98.543,98.475,0.25]
[1644691059268,5.21059892,98.544,98.475,0.25]
[1644691059467,5.075,98.543,98.475,0.25]
[1644691059668,5.21059892,98.542,98.475,0.25]
[1644691060067,5.075,98.541,98.475,0.25]
[1644691060271,5.21059892,98.541,98.475,0.25]
[1644691060568,5.21059892,98.54,98.475,0.25]
[1644691060968,5.21059892,98.544,98.475,0.25]
[1644691061168,5.075,98.543,98.475,0.25]
[1644691061571,2.87081805,98.546,98.48,15.2306]
[1644691061572,5.21059892,98.542,98.48,15.2306]
[1644691061768,4.29264515,98.589,98.482,65.0]
[1644691061969,4.29264515,98.603,98.482,65.0]
[1644691062169,4.29264515,98.603,98.483,102.92390296]
[1644691062372,4.29264515,98.622,98.483,120.7763852]
[1644691062571,4.29264515,98.622,98.484,2.62390296]
[1644691062771,4.29264515,98.622,98.485,100.3]
[1644691062972,4.29264515,98.622,98.485,110.18381767]
[1644691063273,4.29264515,98.622,98.487,38.59807547]
[1644691063471,5.073,98.621,98.5,14.63]
[1644691063675,4.29264515,98.636,98.502,37.69812312]
[1644691063875,5.073,98.62,98.51,15.2253]
[1644691064072,5.073,98.635,98.511,5.073]
[1644691064472,24.4101,98.634,98.512,2.62390296]
[1644691064673,24.4101,98.634,98.514,100.3]
[1644691064876,5.072,98.633,98.515,5.072]
[1644691065077,24.4101,98.634,98.515,55.65260296]
[1644691065275,24.4101,98.634,98.518,100.3]
[1644691065476,24.4101,98.634,98.519,5.072]
[1644691065675,24.4101,98.634,98.519,7.69590296]
[1644691065876,24.4101,98.634,98.53,15.2196]
[1644691066077,24.4101,98.634,98.532,36.95153493]
[1644691066480,24.4101,98.634,98.533,100.3]
[1644691066678,24.4101,98.634,98.534,5.071]
[1644691066877,24.4101,98.634,98.535,100.3]
[1644691067083,5.072,98.639,98.551,140.1014504]
[1644691067279,5.071,98.644,98.551,140.1014504]
[1644691067680,5.071,98.644,98.551,39.8014504]
[1644691068479,112.5,98.645,98.551,39.8014504]
[1644691068879,112.0,98.645,98.56,15.217]
[1644691069082,112.5,98.641,98.56,15.217]
[1644691069684,112.5,98.641,98.561,2.62390296]
[1644691069884,112.5,98.641,98.562,5.07]
[1644691070086,112.5,98.641,98.581,100.3]
[1644691070885,5.07,98.64,98.56,50.7126]
[1644691071086,14.63,98.66,98.561,100.3]
[1644691071289,5.07,98.659,98.561,130.3535]
[1644691071686,5.07,98.659,98.563,100.3]
[1644691071887,5.07,98.659,98.57,15.2156]
[1644691072887,102.92390296,98.658,98.562,41.90158851]
[1644691073089,102.92390296,98.658,98.53,5.07]
[1644691073090,112.5,98.643,98.53,5.07]
[1644691073289,14.63,98.63,98.513,5.071]
[1644691073488,27.7696,98.629,98.512,23.1184]
[1644691073987,2.62390296,98.628,98.513,5.072]
[1644691074187,5.072,98.627,98.513,37.27979421]
[1644691074389,5.072,98.627,98.514,5.322]
[1644691074887,15.2231,98.62,98.53,15.2218]
[1644691075090,15.2231,98.62,98.531,37.07125143]
[1644691075091,14.63,98.61,98.531,37.07125143]
[1644691075688,14.63,98.61,98.532,100.3]
[1644691075908,14.63,98.61,98.532,105.372]
[1644691076090,14.63,98.61,98.54,15.221]
[1644691076288,5.072,98.609,98.531,37.07125143]
[1644691077388,14.63,98.61,98.531,37.07125143]
[1644691077792,29.8547,98.61,98.531,37.07125143]
[1644691078289,14.63,98.61,98.532,100.3]
[1644691078489,5.072,98.609,98.531,37.07125143]
[1644691078889,12.872,98.609,98.531,37.07125143]
[1644691079990,7.8,98.609,98.532,5.072]
[1644691080189,29.8543,98.61,98.531,37.07125143]
[1644691080190,5.072,98.608,98.531,37.07125143]
[1644691080592,5.072,98.609,98.514,23.6776]
[1644691080890,112.5,98.604,98.49,15.2282]
[1644691081090,14.63,98.59,98.49,15.2282]
[1644691081292,23.5408,98.589,98.49,15.2282]
[1644691081492,23.5408,98.589,98.491,41.98757654]
[1644691081890,15.2293,98.58,98.491,41.98757654]
[1644691082095,5.074,98.579,98.491,41.98757654]
[1644691082894,5.074,98.579,98.492,2.62390296]
[1644691083192,5.074,98.579,98.491,41.98757654]
[1644691084898,5.074,98.579,98.492,100.55]
[1644691085096,5.074,98.579,98.492,0.25]
[1644691085498,5.074,98.579,98.5,15.2276]
[1644691085696,29.8593,98.58,98.501,5.074]
[1644691087598,14.63,98.58,98.501,5.074]
[1644691087797,23.5408,98.589,98.511,139.10777517]
[1644691088197,23.5408,98.589,98.512,2.62390296]
[1644691088597,23.5408,98.589,98.513,5.073]
[1644691088797,23.5408,98.589,98.52,15.2239]
[1644691088999,23.5408,98.589,98.521,5.073]
[1644691089399,23.5408,98.589,98.522,100.3]
[1644691089598,23.5408,98.589,98.523,5.073]
[1644691089997,23.5408,98.589,98.524,100.3]
[1644691090401,23.5408,98.589,98.526,39.59492809]
[1644691090601,23.5408,98.589,98.527,5.073]
[1644691093116,5.073,98.599,98.53,15.2228]
[1644691093310,5.072,98.618,98.53,15.2228]
[1644691093510,5.072,98.619,98.531,2.62390296]
[1644691093712,5.071,98.633,98.531,26.23390296]
[1644691093910,5.072,98.618,98.531,26.23390296]
[1644691094111,5.071,98.633,98.532,7.69490296]
[1644691094511,5.071,98.633,98.533,102.92390296]
[1644691094717,9.36364515,98.637,98.533,100.3]
[1644691094925,5.071,98.632,98.551,40.90621107]
[1644691095117,14.63,98.63,98.551,40.90621107]
[1644691095318,5.071,98.629,98.551,40.90621107]
[1644691095919,5.071,98.629,98.552,100.3]
[1644691097521,5.071,98.629,98.561,100.3]
[1644691098633,5.071,98.638,98.561,100.3]
[1644691101034,45.9597,98.639,98.562,5.071]
[1644691101735,45.9597,98.639,98.563,100.3]
[1644691103135,45.9597,98.639,98.561,5.07]
[1644691103442,5.07,98.638,98.56,15.2179]
[1644691103634,5.07,98.638,98.554,5.071]
[1644691103834,5.07,98.638,98.551,40.90621107]
[1644691105138,29.8515,98.63,98.551,40.90621107]
[1644691105338,12.98607601,98.629,98.551,40.90621107]
[1644691105839,5.071,98.629,98.551,40.90621107]
[1644691106238,4.29264515,98.627,98.551,40.90621107]
[1644691106439,5.071,98.626,98.551,40.90621107]
[1644691106840,15.2228,98.62,98.551,40.90621107]
[1644691107041,29.8528,98.62,98.551,40.90621107]
[1644691108944,29.8528,98.62,98.532,5.071]
[1644691109145,5.072,98.619,98.533,0.25]
[1644691112859,15.2244,98.61,98.532,47.43099594]
[1644691113059,14.63,98.6,98.522,5.072]
[1644691113260,5.073,98.599,98.522,5.072]
[1644691113460,16.55690296,98.599,98.522,5.072]
[1644691113967,22.228,98.59,98.522,5.072]
[1644691114161,14.63,98.58,98.522,5.072]
[1644691114364,14.63,98.57,98.522,5.072]
[1644691114562,5.073,98.569,98.522,5.072]
[1644691114960,7.69690296,98.569,98.522,5.072]
[1644691115365,15.2322,98.56,98.522,5.072]
[1644691115567,14.63,98.55,98.474,5.074]
[1644691115763,14.63,98.57,98.487,2.62390296]
[1644691115964,4.29264515,98.578,98.487,2.62390296]
[1644691115965,4.29264515,98.578,98.487,10.46390296]
[1644691116163,5.075,98.588,98.49,14.63]
[1644691116364,4.29264515,98.605,98.491,100.3]
[1644691116567,4.29264515,98.617,98.52,15.2228]
[1644691116764,14.63,98.6,98.492,48.7191]
[1644691116964,14.63,98.59,98.492,48.7191]
[1644691117184,14.63,98.59,98.489,41.91566933]
[1644691117364,5.074,98.589,98.489,41.91566933]
[1644691117565,15.2309,98.58,98.489,41.91566933]
[1644691117765,5.074,98.579,98.49,0.25]
[1644691118066,29.8609,98.58,98.489,41.91566933]
[1644691118265,100.3,98.577,98.489,41.91566933]
[1644691118464,12.99707814,98.576,98.489,41.91566933]
[1644691118664,2.62390296,98.576,98.489,41.91566933]
[1644691118865,7.69790296,98.575,98.489,41.91566933]
[1644691119069,2.62390296,98.575,98.489,41.91566933]
[1644691119269,7.69790296,98.574,98.489,41.91566933]
[1644691119467,14.63,98.56,98.489,41.91566933]
[1644691119666,29.8634,98.56,98.489,41.91566933]
[1644691119868,5.074,98.559,98.489,41.91566933]
[1644691120268,29.8634,98.56,98.489,41.91566933]
[1644691120665,14.63,98.56,98.489,41.91566933]
[1644691120866,14.63,98.56,98.49,0.25]
[1644691121066,14.63,98.56,98.491,5.074]
[1644691123067,14.63,98.56,98.492,100.3]
[1644691123269,5.074,98.589,98.492,100.3]
[1644691123467,5.074,98.596,98.494,100.3]
[1644691123869,5.074,98.596,98.495,2.62390296]
[1644691124071,5.073,98.599,98.495,2.62390296]
[1644691124274,14.63,98.6,98.496,23.511]
[1644691124694,14.63,98.6,98.497,2.62390296]
[1644691124871,14.63,98.6,98.5,15.2276]
[1644691125771,14.63,98.6,98.501,100.3]
[1644691125973,5.073,98.599,98.51,15.2248]
[1644691126172,29.374,98.599,98.512,100.3]
[1644691127574,29.374,98.599,98.511,47.46560921]
[1644691128372,29.374,98.599,98.512,100.3]
[1644691129376,29.374,98.599,98.512,99.8]
[1644691129574,29.374,98.599,98.514,100.3]
[1644691130879,29.374,98.599,98.515,5.073]
[1644691131077,29.374,98.599,98.52,15.2244]
[1644691131279,29.374,98.599,98.521,5.073]
[1644691132498,24.301,98.599,98.521,5.073]
[1644691133702,5.073,98.598,98.521,5.073]
[1644691135102,5.073,98.598,98.52,15.2244]